Cogmind - Beta 16 @@@ ROGUE MODE // 2025.11.26 @ 19:38:09 Player: lepire Result: Destroyed by D-53 Grenadier with Mini Grenade Launcher Performance ------------- Evolutions (0) 0 Regions Visited (2) 400 Robots Destroyed (11) 55 Value Destroyed (133) 133 Prototype IDs (0) 0 Alien Tech Used (0) 0 Bonus (0) 0 TOTAL SCORE: 588 Bonus ------- None Cogmind --------- Core Integrity 0/250 Matter 251/300 Energy 100/100 System Corruption 5% Temperature Cool (0) Movement Treading (160) Location -10/Mines Parts ------- > --- POWER (1) -------- (None) > --- PROPULSION (2) --- Light Treads > --- UTILITY (2) ------ (None) > --- WEAPON (2) ------- Light Assault Rifle > --- INVENTORY (5) ---- Ion Engine Light Ion Engine Small Storage Unit High-capacity Matter Pod (55) Mining Laser Peak State ------------ > --- POWER ------------ Ion Engine > --- PROPULSION ------- Light Treads Compact Wheel > --- UTILITY ---------- High-capacity Storage Unit Structural Scanner > --- WEAPON ----------- Medium Laser Small Laser > --- INVENTORY -------- Ion Engine Light Ion Engine Light Treads Compact Wheel Small Storage Unit Large Storage Unit High-capacity Matter Pod Structural Scanner Terrain Scanner Light Assault Rifle [Rating: 8] Favorites ----------- Power Ion Engine Engine Ion Engine Propulsion Light Treads Treads Light Treads Leg Aluminum Leg Wheel Compact Wheel Utility High-capacity Storage Unit Device Structural Scanner Storage High-capacity Storage Unit Weapon Medium Laser Energy Gun Medium Laser Ballistic Gun Light Assault Rifle Special Weapon Mining Laser Build | -11 -10 -10 ------- Run | Yrd Mat Min Slots Evolved . | . . . Power . | . . . Propulsion . | . . . Utility . | . . . Weapon . | . . . Parts Attached 12 | 2 9 1 Power 1 | . 1 . Engine 1 | . 1 . Core . | . . . Reactor . | . . . Propulsion 4 | 2 2 . Treads 2 | 1 1 . Leg . | . . . Wheel 2 | 1 1 . Hover . | . . . Flight . | . . . Utility 4 | . 4 . Device 2 | . 2 . Storage 2 | . 2 . Processor . | . . . Hackware . | . . . Protection . | . . . Artifact . | . . . Weapon 3 | . 2 1 Energy Gun 1 | . 1 . Energy Cannon . | . . . Ballistic Gun 1 | . . 1 Ballistic Cannon . | . . . Launcher . | . . . Special Weapon 1 | . 1 . Impact Weapon . | . . . Slashing Weapon . | . . . Piercing Weapon . | . . . Special Melee Weapon . | . . . Unidentified Prototypes . | . . . Parts Lost 7 | . 2 5 Power 1 | . . 1 Propulsion 3 | . 2 1 Utility 1 | . . 1 Weapon 2 | . . 2 Highest Loss Streak 5 | . 2 5 To Critical Strikes . | . . . Average Backups 8 | 6 8 8 Power 1 | 1 1 2 Propulsion 1 | 4 1 . Utility 3 | . 3 5 Weapon 1 | 1 1 1 Tool/Special . | . . . Unused Backups 8 | . 2 6 Power 3 | . 1 2 Propulsion . | . . . Utility 3 | . . 3 Weapon 2 | . 1 1 Tool/Special . | . . . Average Slot Usage (%) 92 | . 93 87 Engine 13 | . 14 13 Treads 14 | . 14 14 Wheel 13 | . 14 10 Device 8 | . 7 13 Storage 14 | . 14 13 Energy Gun 26 | . 27 18 Peak Build Rating 8 | 6 8 7 Average Rating 6 | 6 6 6 On Entrance 6 | 6 6 7 Avg Prop Armor Cover (%) 13 | . 13 14 Naked Turns . | . . . Heaviest Build 49 | 13 49 49 Greatest Support 20 | 20 20 20 Greatest Overweight (x) 3 | . 3 3 Average Overweight (x) 2 | . 2 2 Largest Inventory Capacity 20 | 8 20 20 Average Capacity 19 | 8 19 19 Most Carried 11 | 6 11 9 Average Carried 8 | 4 8 8 Final Capacity 20 | 8 20 5 Final Carried 9 | 4 9 5 Class Distribution -------------------- 100% | Mutant Dominant Class ---------------- Mutant | -10/Materials Mutant | -10/Mines Resources | -11 -10 -10 ----------- Run | Yrd Mat Min Matter Collected 316 | 188 128 . Remotely . | . . . Salvage Created 169 | . 154 15 Parts 15 | . 15 . Haulers Intercepted 1 | . 1 . Recyclers Shooed 1 | . 1 . Parts Field Recycled . | . . . Retrieved Matter . | . . . Parts Self-Destructed . | . . . Prevented . | . . . Parts Restored . | . . . Kills | -11 -10 -10 ------- Run | Yrd Mat Min Combat Hostiles Destroyed 10 | . 9 1 Guns 10 | . 9 1 Classes Destroyed 4 | . 3 1 Worker 1 | . 1 . Hauler 1 | . 1 . Swarmer 9 | . 9 . Assembled 1 | . . 1 Best Kill Streak 3 | . 3 1 Combat Bots Only 3 | . 3 1 Max Kills in Single Turn 2 | . 2 1 Gunslinging 1 | . 1 . Exploded . | . . . Melee . | . . . Uniques/NPCs Destroyed . | . . . Combat | -11 -10 -10 -------- Run | Yrd Mat Min Hostile Shots Fired 50 | . 32 18 Missed 8 | . 7 1 Hits 42 | . 25 17 Melee 8 | . . 8 Projectile 34 | . 25 9 AOE 8 | . . 8 Damage Taken 945 | . 382 563 Core 275 | . 123 152 Absorbed by Shields . | . . . Core Remaining (%) 100 | 100 . . Volleys Fired 32 | . 23 9 Largest 2 | . 2 2 Hottest 100 | . 100 70 Shots Fired 57 | . 45 12 Gun 56 | . 44 12 Cannon . | . . . Launcher . | . . . Special 1 | . 1 . Kinetic 9 | . . 9 Thermal 48 | . 45 3 Explosive . | . . . Electromagnetic . | . . . Robot Hit Streak 8 | . 8 3 Robot Miss Streak 3 | . 3 3 Penetration Max . | . . . Secondary Targets 2 | . 2 . Max Gunslinging Chain 1 | . 1 . Shots Hit Robots 31 | . 25 6 Core Hits 15 | . 12 3 Critical Kills . | . . . Critical Parts Destroyed . | . . . Critical Strikes 1 | . 1 . Burn 1 | . 1 . Melee Attacks . | . . . Impact . | . . . Slashing . | . . . Piercing . | . . . Sneak Attacks . | . . . Combat Hostiles . | . . . Follow-up Attacks . | . . . Damage Inflicted 417 | . 369 48 Guns 348 | . 300 48 Cannons . | . . . Explosions 69 | . 69 . Melee . | . . . Ramming . | . . . Kinetic 48 | . . 48 Thermal 369 | . 369 . Explosive . | . . . Electromagnetic . | . . . Impact . | . . . Slashing . | . . . Piercing . | . . . Highest Corruption 5 | . . 5 Average Corruption 4 | . . 4 Corruption Purged . | . . . Corruption Blocked . | . . . Effects 2 | . . 2 Matter Fused 2 | . . 2 Overload Shots . | . . . Overflow Damage 73 | . 73 . Projectiles . | . . . Explosions 73 | . 73 . Melee . | . . . Knockbacks . | . . . Impact . | . . . Kinetic . | . . . Secondary . | . . . Self-Inflicted Damage 183 | . 183 . Shots 2 | . 2 . Rammed . | . . . Targets Rammed . | . . . Kicked . | . . . Crushed . | . . . Highest Temperature 130 | . 130 50 Average Temperature 42 | . 44 27 Received Heat Transfer . | . . . Siege Activations . | . . . Martial Activations . | . . . Shielding Activations . | . . . Robots Disrupted . | . . . Combat Hostiles . | . . . Robots Corrupted . | . . . Combat Hostiles . | . . . Parts Fried . | . . . Impact Corruptions . | . . . Robots Melted . | . . . Combat Hostiles . | . . . Parts Melted 3 | . 3 . Heat Transferred 906 | . 906 . Parts Sabotaged . | . . . Parts Stolen . | . . . Parts Stripped . | . . . Power Chain Reactions . | . . . Alert | -11 -10 -10 ------- Run | Yrd Mat Min Maximum Alert Level . | . . . Low Security (%) 100 | 100 100 100 Level 1 . | . . . Level 2 . | . . . Level 3 . | . . . Level 4 . | . . . Level 5 . | . . . High Security . | . . . Max Security . | . . . Peak Influence 143 | . 143 55 Initial 49 | . . 49 Average 34 | . 36 24 Influence Increases 338 | . 332 6 Destroy 0b10 Robot/C 180 | . 180 . Destroy 0b10 Robot/NC 10 | . 10 . Destroy Leader 32 | . 32 . Successful Hack 11 | . 5 6 Disable Machine 60 | . 60 . Destroy Structure 45 | . 45 . Influence Decreases 338 | . 205 133 Entered New Map 78 | . . 78 Time Decay 225 | . 185 40 Lost Part 35 | . 20 15 Squads Dispatched 1 | . 1 . Investigation . | . . . Extermination . | . . . Reinforcement 1 | . 1 . Assault . | . . . Garrison . | . . . Intercept . | . . . Searches Triggered . | . . . Construction Impeded . | . . . Haulers Reinforced . | . . . Active Scanning Responses . | . . . Cargo Convoy Interrupts . | . . . Stealth | -11 -10 -10 --------- Run | Yrd Mat Min Distress Signals 1 | . 1 . Communications Jammed . | . . . Distress Signals . | . . . Times Spotted 26 | . 18 8 Peak Tracking Total 15 | . 5 15 Tactical Retreats . | . . . Traps | -11 -10 -10 ------- Run | Yrd Mat Min Traps Triggered . | . . . Indirectly . | . . . Trap Hack Attempts . | . . . Triggered . | . . . Disarmed . | . . . Reprogrammed . | . . . Reused . | . . . Traps Extracted . | . . . Installed . | . . . Triggered . | . . . Machines | -11 -10 -10 ---------- Run | Yrd Mat Min Machines Disabled 4 | . 4 . Max in Single Turn 4 | . 4 . Machines Repaired . | . . . Machines Dismantled . | . . . Machines Sabotaged . | . . . Overloaded Fab Kills . | . . . Hacking | -11 -10 -10 --------- Run | Yrd Mat Min Machines Accessed 5 | . 4 1 Terminals 3 | . 2 1 Fabricators . | . . . Repair Stations 1 | . 1 . Recycling Units 1 | . 1 . Scanalyzers . | . . . Garrison Access . | . . . Total Hacks 14 | . 11 3 Successful 5 | . 3 2 Failed 9 | . 8 1 Catastrophic 2 | . 2 . Database Lockouts . | . . . Manual 5 | . 2 3 Terminals 8 | . 5 3 Fabricators . | . . . Repair Stations 3 | . 3 . Recycling Units 3 | . 3 . Scanalyzers . | . . . Garrison Access . | . . . Terminal Hacks 4 | . 2 2 Robot Analysis 1 | . . 1 Locate Traps 1 | . 1 . Hauler Manifests 1 | . 1 . Zone Layout 1 | . . 1 Fabricator Hacks . | . . . Repair Station Hacks . | . . . Recycling Unit Hacks 1 | . 1 . Report Inventory 1 | . 1 . Scanalyzer . | . . . Garrison Access Hacks . | . . . Unauthorized Hacks . | . . . Terminals . | . . . Fabricators . | . . . Repair Stations . | . . . Recycling Units . | . . . Scanalyzers . | . . . Garrison Access . | . . . Data Cores Recovered . | . . . Used . | . . . Hacking Detections 5 | . 4 1 Full Trace Events . | . . . Feedback Events . | . . . Feedback Blocked . | . . . Robot Schematics Acquired . | . . . Robots Built . | . . . Authchips . | . . . Time . | . . . Total Robot Build Rating . | . . . Part Schematics Acquired . | . . . Parts Built . | . . . Authchips . | . . . Time . | . . . Total Part Build Rating . | . . . Part Studies Acquired . | . . . Parts Repaired . | . . . Time . | . . . Parts Recycled . | . . . Recycled Matter . | . . . Retrieved Matter . | . . . Retrieved Components . | . . . Parts Scanalyzed . | . . . Part Schematics Acquired . | . . . Parts Damaged . | . . . Bothacking | -11 -10 -10 ------------ Run | Yrd Mat Min Used RIF Installer . | . . . Robots Hacked . | . . . Non-combat . | . . . Combat . | . . . Robot Hacks Applied . | . . . Relay Couplers Released . | . . . Fabnet Peak Effective % . | . . . Robots Rewired . | . . . Allies Hacked . | . . . Hacks Repelled . | . . . Allies | -11 -10 -10 -------- Run | Yrd Mat Min Total Allies . | . . . Largest Group . | . . . Highest-Rated Group . | . . . Highest-Rated Ally . | . . . Total Orders . | . . . Ally Attacks . | . . . Total Damage . | . . . Kills . | . . . Allies Corrupted . | . . . Allies Melted . | . . . Intel | -11 -10 -10 ------- Run | Yrd Mat Min Active Infowar (turns) 472 | . 357 115 Structural 472 | . 357 115 Robot Analysis Total 1 | . . 1 Derelict Logs Recovered . | . . . Drone Launches . | . . . Drone Recoveries . | . . . Exploration | -11 -10 -10 ------------- Run | Yrd Mat Min Turns Passed 809 | 8 678 123 Spaces Moved 476 | 3 411 62 Core . | . . . Treads 30 | 3 16 11 Legs . | . . . Wheels 446 | . 395 51 Hover . | . . . Flight . | . . . Fastest Speed 130 | 160 130 130 Average Speed 143 | 160 140 165 Slowest Speed 320 | 160 240 320 Overloaded Moves . | . . . Propulsion Burnouts . | . . . Robots Hopped . | . . . Potential Cave-ins . | . . . Cave-ins Triggered . | . . . Exploration Rate (%) 32 | 2 70 24 Regions Visited 2 Branch Regions 1 Pre-discovered Areas . | . . . Known Exits Taken . | . . . Unknown Exits Taken 2 | 1 1 . Scrap Searched . | . . . Spaces Dug 1 | . 1 . Terrain Destroyed 50 | . 50 . Melee . | . . . Projectile 1 | . 1 . AOE 49 | . 49 . Terrain Rammed . | . . . Walls Destroyed . | . . . Machines Disabled . | . . . Actions | -11 -10 -10 --------- Run | Yrd Mat Min Total 544 | 6 465 73 Wait 15 | . 15 . Move 474 | 2 410 62 Hop . | . . . Pick Up 5 | . 5 . Fast Attach 2 | . 2 . Attach 4 | . 3 1 Detach 2 | . 2 . Swap 6 | 2 4 . Drop 4 | 2 1 1 Fire 32 | . 23 9 Melee . | . . . Ram . | . . . Kick . | . . . Crush . | . . . Escape Stasis . | . . . Rewire . | . . . Trap . | . . . Miscellaneous . | . . . Route ------- -11/Scrapyard -10/Materials (discovered 3 exits: [*Mat x2] / *Min) -10/Mines History --------- Turn | Location | Event 6 | -11/Scrapyard | Discovered new exit (range 3) 9 | -11/Scrapyard | Entered Materials 317 | -10/Materials | Build established: Mutant 360 | -10/Materials | Discovered new exit (range 12) 616 | -10/Materials | Discovered new exit (range 11) 662 | -10/Materials | Discovered new exit (range 9) 687 | -10/Materials | Entered Mines 741 | -10/Mines | Assembled infested the area 774 | -10/Mines | Core integrity fell below 50% 809 | -10/Mines | Core integrity fell below 20% 810 | -10/Mines | Destroyed by D-53 Grenadier with Mini Grenade Launcher Last Messages --------------- dispatching Demolisher response squad. 00741_ K-01 Serf collects debris. 00756_ Sml. Laser destroyed. 00756_ System corrupted by crushing effect (+2). 00764_ System corrupted: Matter fused (-7). 00770_ Med. Laser destroyed. 00770_ System corrupted by crushing effect (+2). 00776_ Com. Wheel destroyed. 00776_ System corrupted by crushing effect (+1). 00779_ as-71333 destroyed. 00796_ System corrupted: Matter fused (-9). 00802_ C-45 Heavy ARC bursts open, deploying its payload. 00802_ D-53 Grenadier unfolds itself. 00802_ Structural Scanner destroyed. 00802_ Laser Drill disabled. 00802_ HV Slug penetrates Wall. 00802_ Ion Engine destroyed. 00804_ Dropped Hcp. Storage Unit. 00807_ The unstable cave ceiling collapses. Map ----- +----------------------------------------------------+ | ?????????????????? #####?????? | | ?????????????????? ## ##?????????? | | ?????????????????? #### ##??????????? | | ?????????????????? #??# #???????????? | | ?????????????????? ##??## #???????????? | | ??????????????????#####????# ##???????????? | | ??????????????????#????????# ##########???? | | ???????????????????????????## ###########???? | | ???????????????????????????## ### ##???? | | ???????????????????????????## ### ##???? | | ???????????????????????????## ### ##???? | | ???????????????????????????## ##???? | | ???????????????????????????## ### ##???? | | ???????????????????????????## ###T#######???? | | ???????????????????????????## ###########???? | | ?????????????????????????#### ######????????? | | ?????????????????????????#### ##????????????? | | ??????????????????##?????## #####?????????? | | ?????????????????? #?????## ##########??????? | | ???????????????## #?????## ### ######?????? | | ???????????????## ######## ## ####????? | | ???????????????## ## ## ###????? | | ???????????????### ##????? | | ????????????????####### # ##????? | | ???????????????????## k ###????? | | ????????????????????# @ # ####????? | | ???????????????###### #" ####?????? | | ???????????????### # d% ######????? | | ???????????????## ! d #######????? | | ???????????????## "" ! % ##????? | | ????????????????## "" ##????? | | ????????????????### "" ## ## ##????? | | ?????????????????## ### ;# ;#????? | | ?????????????????### #### ##### ## ####??? | | ?????????????????################ ## #####?? | | ??????????????????########## ###?? | | ???????????????????######## ##?? | | ????????????????? ###? | | ????????????????? ### | | ???????????????????######### ## | | ???????????????????######### ### ## | | ????????????????????????### ##### ## | | ????????????????????????## ##### ### | | ????????????????????????## ###??? #### | | ????????????????????????## ####??? ####? | | ????????????????????????## ###???? ####?? | | ????????????????????????### ##????? ####??? | | ????????????????????????#### ??????? ###???? | | ?????????????????????????### ???????????????? | | ??????????????????????????## ???????????????? | +----------------------------------------------------+ Best States ------------- Heat Dissipation 25 Energy Generation 10 Energy Capacity 250 Matter Stores 300 Matter Capacity 300 Sight Range 16 Terrain Scan Density 10 Evasion (%) 40 Recoil Reduction 1 Item Schematics ----------------- None Robot Schematics ------------------ None Fabricated ------------ Nothing Repaired ---------- Nothing Studied --------- None Alien Tech Used ----------------- None Achievements -------------- None Challenges ------------ None Game ------ Seed ExperimentalShockProcessor Manual? 0 Play Time 00:10:16 Cumulative 98.0 hours Start 2025.11.26 @ 19:29:55 End 2025.11.26 @ 19:38:09 Sessions 1 Manual Loads 0 Difficulty Rogue Special Mode None Game No. 111 Rogue 81 Adventurer 30 Explorer 0 Win Type - Total 1 Types 1/0/0/0/0/0/0/0/0/0 Lore% 51 Gallery% 42 Achievement% 32 Wizard Run 0 Options --------- Layout 2 ASCII 0 Keyboard 1 Movement Arrows Keybinds 0 Fullscreen 1 Font 24/Terminus Map View 50x44 Zoom Use 0% Tactical HUD 1 Map Filters NONE Filters NONE Steam 1 RUN: 0f4e2e4b-ea2a-472c-a028-4564d58ef81b